Workbook

Sheet Einteilung-Termine
C2: Gebiet | D2: :
C3: Veranstalter | D3: :
C4: Region | D4: :
C5: Disziplin | D5: :
C6: Datum | D6: :
C7: Vereine
B8: 1) | E8: Ligaleiter
B9: 2)
B10: 3)
B11: 4)
B12: 5)
B13: 6)
C15: Wettkampf | E15: © Bechtel V6.0
A16: Datum | C16: Paarungen
C17: 1.Wettkampftag | D17: Z | E17: Anfangstermin
B19: 1 | C19: =IF($C$9="","",$C$9) ->  | D19: - | E19: =IF($C$8="","",$C$8) -> 
B20: 2 | C20: =IF($C$11="","",$C$11) ->  | D20: - | E20: =IF($C$10="","",$C$10) -> 
B21: 3 | C21: =IF($C$13="","",$C$13) ->  | D21: - | E21: =IF($C$12="","",$C$12) -> 
C24: 2.Wettkampftag
B26: 1 | C26: =IF($C$11="","",$C$11) ->  | D26: - | E26: =IF($C$9="","",$C$9) -> 
B27: 2 | C27: =IF($C$8="","",$C$8) ->  | D27: - | E27: =IF($C$13="","",$C$13) -> 
B28: 3 | C28: =IF($C$12="","",$C$12) ->  | D28: - | E28: =IF($C$10="","",$C$10) -> 
C31: 3.Wettkampftag
B33: 1 | C33: =IF($C$9="","",$C$9) ->  | D33: - | E33: =IF($C$10="","",$C$10) -> 
B34: 2 | C34: =IF($C$13="","",$C$13) ->  | D34: - | E34: =IF($C$11="","",$C$11) -> 
B35: 3 | C35: =IF($C$12="","",$C$12) ->  | D35: - | E35: =IF($C$8="","",$C$8) -> 
C38: 4.Wettkampftag
B40: 1 | C40: =IF($C$13="","",$C$13) ->  | D40: - | E40: =IF($C$9="","",$C$9) -> 
B41: 2 | C41: =IF($C$11="","",$C$11) ->  | D41: - | E41: =IF($C$12="","",$C$12) -> 
B42: 3 | C42: =IF($C$10="","",$C$10) ->  | D42: - | E42: =IF($C$8="","",$C$8) -> 
C45: 5.Wettkampftag | D45: Z | E45: Endtermin
B47: 1 | C47: =IF($C$12="","",$C$12) ->  | D47: - | E47: =IF($C$9="","",$C$9) -> 
B48: 2 | C48: =IF($C$8="","",$C$8) ->  | D48: - | E48: =IF($C$11="","",$C$11) -> 
B49: 3 | C49: =IF($C$10="","",$C$10) ->  | D49: - | E49: =IF($C$13="","",$C$13) -> 
B53: Mannschaftsführer
B54: =IF(C8="","",C8) ->  | D54: Alois Muster
D55: 06567-1234 am@t-online.de
B56: =IF(C9="","",C9) ->  | D56: Kurt Test
D57: 06567-5678 kt@web.de
B58: =IF(C10="","",C10) ->  | D58: Fred Versuch
D59: 06567-987 fv@t-online.de
B60: =IF(C11="","",C11) ->  | D60: Werner Müller
D61: 06587-435 wm@web.de
B62: =IF(C12="","",C12) ->  | D62: Arno Bauer
D63: 06587-8899 ab@gmail.com
B64: =IF(C13="","",C13) ->  | D64: Heinz Wagner
D65: 06587-2993 hw@gmx.de

Sheet Wertung-Mannschaft
A1: ='Einteilung-Termine'!A1:C1 -> 0
B2: Ergebnis: | C2: Mannschaft
B3: Veranstalter: | C3: =IF('Einteilung-Termine'!E3="","",'Einteilung-Termine'!E3) -> 
B4: Disziplin : | C4: =IF('Einteilung-Termine'!E5="","",'Einteilung-Termine'!E5) -> 
G6: =IF('Einteilung-Termine'!E15="","",'Einteilung-Termine'!E15) -> © Bechtel V6.0 | H6: =IF('Einteilung-Termine'!J5="","",'Einteilung-Termine'!J5) ->  | I6: =IF('Einteilung-Termine'!K5="","",'Einteilung-Termine'!K5) ->  | J6: =IF('Einteilung-Termine'!L5="","",'Einteilung-Termine'!L5) ->  | K6: =IF('Einteilung-Termine'!M5="","",'Einteilung-Termine'!M5) ->  | L6: =IF('Einteilung-Termine'!N5="","",'Einteilung-Termine'!N5) ->  | M6: =IF('Einteilung-Termine'!O5="","",'Einteilung-Termine'!O5) -> 
B7: 1. Wettkampf | O7: M+ | P7: M- | Q7: E+ | R7: E- | S7: ='Einteilung-Termine'!C8 -> 0 | T7: M+ | U7: M- | V7: E+ | W7: E- | X7: ='Einteilung-Termine'!C9 -> 0 | Y7: M+ | Z7: M- | AA7: E+ | AB7: E- | AC7: ='Einteilung-Termine'!C10 -> 0 | AD7: M+ | AE7: M- | AF7: E+ | AG7: E- | AH7: ='Einteilung-Termine'!C11 -> 0 | AI7: M+ | AJ7: M- | AK7: E+ | AL7: E- | AM7: ='Einteilung-Termine'!C12 -> 0 | AN7: M+ | AO7: M- | AP7: E+ | AQ7: E- | AR7: ='Einteilung-Termine'!C13 -> 0
B8: Ausgetragen | G8: M.-Pkt. | K8: E.-Pkt.
C9: =IF('Einteilung-Termine'!C19="","",'Einteilung-Termine'!C19) ->  | D9: : | E9: =IF('Einteilung-Termine'!E19="","",'Einteilung-Termine'!E19) ->  | G9: 2 | H9: : | I9: =IF(G9="","",IF(G9=2,0,IF(G9=1,1,IF(G9=0,2,"")))) -> 0 | K9: 6 | L9: : | M9: =IF(K9="","",IF(K9=6,0,IF(K9=5,1,IF(K9=4,2,IF(K9=0,6,IF(K9=1,5,IF(K9=2,4,IF(K9=3,3,"")))))))) -> 0 | O9: =IF($S$7=C9,G9,IF($S$7=E9,I9,IF($S$7=C10,G10,IF($S$7=E10,I10,IF($S$7=E11,G11,IF($S$7=C11,I11,"")))))) ->  | P9: =IF($S$7=C9,I9,IF($S$7=E9,G9,IF($S$7=C10,I10,IF($S$7=E10,G10,IF($S$7=C11,I11,IF($S$7=E11,G11,"")))))) ->  | Q9: =IF($S$7=C9,K9,IF($S$7=E9,M9,IF($S$7=C10,K10,IF($S$7=E10,M10,IF($S$7=C11,K11,IF($S$7=E11,M11,"")))))) ->  | R9: =IF($S$7=C9,M9,IF($S$7=E9,K9,IF($S$7=C10,M10,IF($S$7=E10,K10,IF($S$7=C11,M11,IF($S$7=E11,K11,"")))))) ->  | S9: =IF($S$7=C9,G9+K9,IF($S$7=E9,I9+M9,IF($S$7=C10,G10+K10,IF($S$7=E10,I10+M10,IF($S$7=C11,G11+K11,IF($S$7=E11,I11+M11,"")))))) ->  | T9: =IF($X$7=C9,G9,IF($X$7=E9,I9,IF($X$7=C10,G10,IF($X$7=E10,I10,IF($X$7=C11,G11,IF($X$7=E11,I11,"")))))) ->  | U9: =IF($X$7=C9,I9,IF($X$7=E9,G9,IF($X$7=C10,I10,IF($X$7=E10,G10,IF($X$7=C11,I11,IF($X$7=E11,G11,"")))))) ->  | V9: =IF($X$7=C9,K9,IF($X$7=E9,M9,IF($X$7=C10,K10,IF($X$7=E10,M10,IF($X$7=C11,K11,IF($X$7=E11,M11,"")))))) ->  | W9: =IF($X$7=C9,M9,IF($X$7=E9,K9,IF($X$7=C10,M10,IF($X$7=E10,K10,IF($X$7=C11,M11,IF($X$7=E11,K11,"")))))) ->  | X9: =IF($X$7=C9,G9+K9,IF($X$7=E9,I9+M9,IF($X$7=C10,G10+K10,IF($X$7=E10,I10+M10,IF($X$7=C11,G11+K11,IF($X$7=E11,I11+M11,"")))))) ->  | Y9: =IF($AC$7=C9,G9,IF($AC$7=E9,I9,IF($AC$7=C10,G10,IF($AC$7=E10,I10,IF($AC$7=C11,G11,IF($AC$7=E11,I11,"")))))) ->  | Z9: =IF($AC$7=C9,I9,IF($AC$7=E9,G9,IF($AC$7=C10,I10,IF($AC$7=E10,G10,IF($AC$7=C11,I11,IF($AC$7=E11,G11,"")))))) ->  | AA9: =IF($AC$7=C9,K9,IF($AC$7=E9,M9,IF($AC$7=C10,K10,IF($AC$7=E10,M10,IF($AC$7=C11,K11,IF($AC$7=E11,M11,"")))))) ->  | AB9: =IF($AC$7=C9,M9,IF($AC$7=E9,K9,IF($AC$7=C10,M10,IF($AC$7=E10,K10,IF($AC$7=C11,M11,IF($AC$7=E11,K11,"")))))) ->  | AC9: =IF($AC$7=C9,G9+K9,IF($AC$7=E9,I9+M9,IF($AC$7=C10,G10+K10,IF($AC$7=E10,I10+M10,IF($AC$7=C11,G11+K11,IF($AC$7=E11,I11+M11,"")))))) ->  | AD9: =IF($AH$7=C9,G9,IF($AH$7=E9,I9,IF($AH$7=C10,G10,IF($AH$7=E10,I10,IF($AH$7=C11,G11,IF($AH$7=E11,I11,"")))))) ->  | AE9: =IF($AH$7=C9,I9,IF($AH$7=E9,G9,IF($AH$7=C10,I10,IF($AH$7=E10,G10,IF($AH$7=C11,I11,IF($AH$7=E11,G11,"")))))) ->  | AF9: =IF($AH$7=C9,K9,IF($AH$7=E9,M9,IF($AH$7=C10,K10,IF($AH$7=E10,M10,IF($AH$7=C11,K11,IF($AH$7=E11,M11,"")))))) ->  | AG9: =IF($AH$7=C9,M9,IF($AH$7=E9,K9,IF($AH$7=C10,M10,IF($AH$7=E10,K10,IF($AH$7=C11,M11,IF($AH$7=E11,K11,"")))))) ->  | AH9: =IF($AH$7=C9,G9+K9,IF($AH$7=E9,I9+M9,IF($AH$7=C10,G10+K10,IF($AH$7=E10,I10+M10,IF($AH$7=C11,G11+K11,IF($AH$7=E11,I11+M11,"")))))) ->  | AI9: =IF($AM$7=C9,G9,IF($AM$7=E9,I9,IF($AM$7=C10,G10,IF($AM$7=E10,I10,IF($AM$7=C11,G11,IF($AM$7=E11,I11,"")))))) ->  | AJ9: =IF($AM$7=C9,I9,IF($AM$7=E9,G9,IF($AM$7=C10,I10,IF($AM$7=E10,G10,IF($AM$7=C11,I11,IF($AM$7=E11,G11,"")))))) ->  | AK9: =IF($AM$7=C9,K9,IF($AM$7=E9,M9,IF($AM$7=C10,K10,IF($AM$7=E10,M10,IF($AM$7=C11,K11,IF($AM$7=E11,M11,"")))))) ->  | AL9: =IF($AM$7=C9,M9,IF($AM$7=E9,K9,IF($AM$7=C10,M10,IF($AM$7=E10,K10,IF($AM$7=C11,M11,IF($AM$7=E11,K11,"")))))) ->  | AM9: =IF($AM$7=C9,G9+K9,IF($AM$7=E9,I9+M9,IF($AM$7=C10,G10+K10,IF($AM$7=E10,I10+M10,IF($AM$7=C11,G11+K11,IF($AM$7=E11,I11+M11,"")))))) ->  | AN9: =IF($AR$7=C9,G9,IF($AR$7=E9,I9,IF($AR$7=C10,G10,IF($AR$7=E10,I10,IF($AR$7=C11,G11,IF($AR$7=E11,I11,"")))))) ->  | AO9: =IF($AR$7=C9,I9,IF($AR$7=E9,G9,IF($AR$7=C10,I10,IF($AR$7=E10,G10,IF($AR$7=C11,I11,IF($AR$7=E11,G11,"")))))) ->  | AP9: =IF($AR$7=C9,K9,IF($AR$7=E9,M9,IF($AR$7=C10,K10,IF($AR$7=E10,M10,IF($AR$7=C11,K11,IF($AR$7=E11,M11,"")))))) ->  | AQ9: =IF($AR$7=C9,M9,IF($AR$7=E9,K9,IF($AR$7=C10,M10,IF($AR$7=E10,K10,IF($AR$7=C11,M11,IF($AR$7=E11,K11,"")))))) ->  | AR9: =IF($AR$7=C9,G9+K9,IF($AR$7=E9,I9+M9,IF($AR$7=C10,G10+K10,IF($AR$7=E10,I10+M10,IF($AR$7=C11,G11+K11,IF($AR$7=E11,I11+M11,"")))))) -> 
C10: =IF('Einteilung-Termine'!C20="","",'Einteilung-Termine'!C20) ->  | D10: : | E10: =IF('Einteilung-Termine'!E20="","",'Einteilung-Termine'!E20) ->  | G10: 1 | H10: : | I10: 1 | K10: 3 | L10: : | M10: =IF(K10="","",IF(K10=6,0,IF(K10=5,1,IF(K10=4,2,IF(K10=0,6,IF(K10=1,5,IF(K10=2,4,IF(K10=3,3,"")))))))) -> 3
C11: =IF('Einteilung-Termine'!C21="","",'Einteilung-Termine'!C21) ->  | D11: : | E11: =IF('Einteilung-Termine'!E21="","",'Einteilung-Termine'!E21) ->  | G11: 2 | H11: : | I11: 0 | K11: 0 | L11: : | M11: 6
B15: 2. Wettkampf
B16: Ausgetragen | G16: M.-Pkt. | K16: E.-Pkt.
C17: =IF('Einteilung-Termine'!C26="","",'Einteilung-Termine'!C26) ->  | D17: : | E17: =IF('Einteilung-Termine'!E26="","",'Einteilung-Termine'!E26) ->  | H17: : | I17: =IF(G17="","",IF(G17=2,0,IF(G17=1,1,IF(G17=0,2,"")))) ->  | L17: : | M17: =IF(K17="","",IF(K17=6,0,IF(K17=5,1,IF(K17=4,2,IF(K17=0,6,IF(K17=1,5,IF(K17=2,4,IF(K17=3,3,"")))))))) ->  | O17: =IF($S$7=C17,G17,IF($S$7=E17,I17,IF($S$7=C18,G18,IF($S$7=E18,I18,IF($S$7=E19,G19,IF($S$7=C19,I19,"")))))) ->  | P17: =IF($S$7=C17,I17,IF($S$7=E17,G17,IF($S$7=C18,I18,IF($S$7=E18,G18,IF($S$7=C19,I19,IF($S$7=E19,G19,"")))))) ->  | Q17: =IF($S$7=C17,K17,IF($S$7=E17,M17,IF($S$7=C18,K18,IF($S$7=E18,M18,IF($S$7=C19,K19,IF($S$7=E19,M19,"")))))) ->  | R17: =IF($S$7=C17,M17,IF($S$7=E17,K17,IF($S$7=C18,M18,IF($S$7=E18,K18,IF($S$7=C19,M19,IF($S$7=E19,K19,"")))))) ->  | S17: =IF($S$7=C17,G17+K17,IF($S$7=E17,I17+M17,IF($S$7=C18,G18+K18,IF($S$7=E18,I18+M18,IF($S$7=C19,G19+K19,IF($S$7=E19,I19+M19,"")))))) ->  | T17: =IF($X$7=C17,G17,IF($X$7=E17,I17,IF($X$7=C18,G18,IF($X$7=E18,I18,IF($X$7=C19,G19,IF($X$7=E19,I19,"")))))) ->  | U17: =IF($X$7=C17,I17,IF($X$7=E17,G17,IF($X$7=C18,I18,IF($X$7=E18,G18,IF($X$7=C19,I19,IF($X$7=E19,G19,"")))))) ->  | V17: =IF($X$7=C17,K17,IF($X$7=E17,M17,IF($X$7=C18,K18,IF($X$7=E18,M18,IF($X$7=C19,K19,IF($X$7=E19,M19,"")))))) ->  | W17: =IF($X$7=C17,M17,IF($X$7=E17,K17,IF($X$7=C18,M18,IF($X$7=E18,K18,IF($X$7=C19,M19,IF($X$7=E19,K19,"")))))) ->  | X17: =IF($X$7=C17,G17+K17,IF($X$7=E17,I17+M17,IF($X$7=C18,G18+K18,IF($X$7=E18,I18+M18,IF($X$7=C19,G19+K19,IF($X$7=E19,I19+M19,"")))))) ->  | Y17: =IF($AC$7=C17,G17,IF($AC$7=E17,I17,IF($AC$7=C18,G18,IF($AC$7=E18,I18,IF($AC$7=C19,G19,IF($AC$7=E19,I19,"")))))) ->  | Z17: =IF($AC$7=C17,I17,IF($AC$7=E17,G17,IF($AC$7=C18,I18,IF($AC$7=E18,G18,IF($AC$7=C19,I19,IF($AC$7=E19,G19,"")))))) ->  | AA17: =IF($AC$7=C17,K17,IF($AC$7=E17,M17,IF($AC$7=C18,K18,IF($AC$7=E18,M18,IF($AC$7=C19,K19,IF($AC$7=E19,M19,"")))))) ->  | AB17: =IF($AC$7=C17,M17,IF($AC$7=E17,K17,IF($AC$7=C18,M18,IF($AC$7=E18,K18,IF($AC$7=C19,M19,IF($AC$7=E19,K19,"")))))) ->  | AC17: =IF($AC$7=C17,G17+K17,IF($AC$7=E17,I17+M17,IF($AC$7=C18,G18+K18,IF($AC$7=E18,I18+M18,IF($AC$7=C19,G19+K19,IF($AC$7=E19,I19+M19,"")))))) ->  | AD17: =IF($AH$7=C17,G17,IF($AH$7=E17,I17,IF($AH$7=C18,G18,IF($AH$7=E18,I18,IF($AH$7=C19,G19,IF($AH$7=E19,I19,"")))))) ->  | AE17: =IF($AH$7=C17,I17,IF($AH$7=E17,G17,IF($AH$7=C18,I18,IF($AH$7=E18,G18,IF($AH$7=C19,I19,IF($AH$7=E19,G19,"")))))) ->  | AF17: =IF($AH$7=C17,K17,IF($AH$7=E17,M17,IF($AH$7=C18,K18,IF($AH$7=E18,M18,IF($AH$7=C19,K19,IF($AH$7=E19,M19,"")))))) ->  | AG17: =IF($AH$7=C17,M17,IF($AH$7=E17,K17,IF($AH$7=C18,M18,IF($AH$7=E18,K18,IF($AH$7=C19,M19,IF($AH$7=E19,K19,"")))))) ->  | AH17: =IF($AH$7=C17,G17+K17,IF($AH$7=E17,I17+M17,IF($AH$7=C18,G18+K18,IF($AH$7=E18,I18+M18,IF($AH$7=C19,G19+K19,IF($AH$7=E19,I19+M19,"")))))) ->  | AI17: =IF($AM$7=C17,G17,IF($AM$7=E17,I17,IF($AM$7=C18,G18,IF($AM$7=E18,I18,IF($AM$7=C19,G19,IF($AM$7=E19,I19,"")))))) ->  | AJ17: =IF($AM$7=C17,I17,IF($AM$7=E17,G17,IF($AM$7=C18,I18,IF($AM$7=E18,G18,IF($AM$7=C19,I19,IF($AM$7=E19,G19,"")))))) ->  | AK17: =IF($AM$7=C17,K17,IF($AM$7=E17,M17,IF($AM$7=C18,K18,IF($AM$7=E18,M18,IF($AM$7=C19,K19,IF($AM$7=E19,M19,"")))))) ->  | AL17: =IF($AM$7=C17,M17,IF($AM$7=E17,K17,IF($AM$7=C18,M18,IF($AM$7=E18,K18,IF($AM$7=C19,M19,IF($AM$7=E19,K19,"")))))) ->  | AM17: =IF($AM$7=C17,G17+K17,IF($AM$7=E17,I17+M17,IF($AM$7=C18,G18+K18,IF($AM$7=E18,I18+M18,IF($AM$7=C19,G19+K19,IF($AM$7=E19,I19+M19,"")))))) ->  | AN17: =IF($AR$7=C17,G17,IF($AR$7=E17,I17,IF($AR$7=C18,G18,IF($AR$7=E18,I18,IF($AR$7=C19,G19,IF($AR$7=E19,I19,"")))))) ->  | AO17: =IF($AR$7=C17,I17,IF($AR$7=E17,G17,IF($AR$7=C18,I18,IF($AR$7=E18,G18,IF($AR$7=C19,I19,IF($AR$7=E19,G19,"")))))) ->  | AP17: =IF($AR$7=C17,K17,IF($AR$7=E17,M17,IF($AR$7=C18,K18,IF($AR$7=E18,M18,IF($AR$7=C19,K19,IF($AR$7=E19,M19,"")))))) ->  | AQ17: =IF($AR$7=C17,M17,IF($AR$7=E17,K17,IF($AR$7=C18,M18,IF($AR$7=E18,K18,IF($AR$7=C19,M19,IF($AR$7=E19,K19,"")))))) ->  | AR17: =IF($AR$7=C17,G17+K17,IF($AR$7=E17,I17+M17,IF($AR$7=C18,G18+K18,IF($AR$7=E18,I18+M18,IF($AR$7=C19,G19+K19,IF($AR$7=E19,I19+M19,"")))))) -> 
C18: =IF('Einteilung-Termine'!C27="","",'Einteilung-Termine'!C27) ->  | D18: : | E18: =IF('Einteilung-Termine'!E27="","",'Einteilung-Termine'!E27) ->  | H18: : | L18: :
C19: =IF('Einteilung-Termine'!C28="","",'Einteilung-Termine'!C28) ->  | D19: : | E19: =IF('Einteilung-Termine'!E28="","",'Einteilung-Termine'!E28) ->  | H19: : | L19: :
B23: 3. Wettkampf
B24: Ausgetragen | G24: M.-Pkt. | K24: E.-Pkt.
C25: =IF('Einteilung-Termine'!C33="","",'Einteilung-Termine'!C33) ->  | D25: : | E25: =IF('Einteilung-Termine'!E33="","",'Einteilung-Termine'!E33) ->  | H25: : | I25: =IF(G25="","",IF(G25=2,0,IF(G25=1,1,IF(G25=0,2,"")))) ->  | L25: : | M25: =IF(K25="","",IF(K25=6,0,IF(K25=5,1,IF(K25=4,2,IF(K25=0,6,IF(K25=1,5,IF(K25=2,4,IF(K25=3,3,"")))))))) ->  | O25: =IF($S$7=C25,G25,IF($S$7=E25,I25,IF($S$7=C26,G26,IF($S$7=E26,I26,IF($S$7=E27,I27,IF($S$7=C27,G27,"")))))) ->  | P25: =IF($S$7=C25,I25,IF($S$7=E25,G25,IF($S$7=C26,I26,IF($S$7=E26,G26,IF($S$7=C27,I27,IF($S$7=E27,G27,"")))))) ->  | Q25: =IF($S$7=C25,K25,IF($S$7=E25,M25,IF($S$7=C26,K26,IF($S$7=E26,M26,IF($S$7=C27,K27,IF($S$7=E27,M27,"")))))) ->  | R25: =IF($S$7=C25,M25,IF($S$7=E25,K25,IF($S$7=C26,M26,IF($S$7=E26,K26,IF($S$7=C27,M27,IF($S$7=E27,K27,"")))))) ->  | S25: =IF($S$7=C25,G25+K25,IF($S$7=E25,I25+M25,IF($S$7=C26,G26+K26,IF($S$7=E26,I26+M26,IF($S$7=C27,G27+K27,IF($S$7=E27,I27+M27,"")))))) ->  | T25: =IF($X$7=C25,G25,IF($X$7=E25,I25,IF($X$7=C26,G26,IF($X$7=E26,I26,IF($X$7=C27,G27,IF($X$7=E27,I27,"")))))) ->  | U25: =IF($X$7=C25,I25,IF($X$7=E25,G25,IF($X$7=C26,I26,IF($X$7=E26,G26,IF($X$7=C27,I27,IF($X$7=E27,G27,"")))))) ->  | V25: =IF($X$7=C25,K25,IF($X$7=E25,M25,IF($X$7=C26,K26,IF($X$7=E26,M26,IF($X$7=C27,K27,IF($X$7=E27,M27,"")))))) ->  | W25: =IF($X$7=C25,M25,IF($X$7=E25,K25,IF($X$7=C26,M26,IF($X$7=E26,K26,IF($X$7=C27,M27,IF($X$7=E27,K27,"")))))) ->  | X25: =IF($X$7=C25,G25+K25,IF($X$7=E25,I25+M25,IF($X$7=C26,G26+K26,IF($X$7=E26,I26+M26,IF($X$7=C27,G27+K27,IF($X$7=E27,I27+M27,"")))))) ->  | Y25: =IF($AC$7=C25,G25,IF($AC$7=E25,I25,IF($AC$7=C26,G26,IF($AC$7=E26,I26,IF($AC$7=C27,G27,IF($AC$7=E27,I27,"")))))) ->  | Z25: =IF($AC$7=C25,I25,IF($AC$7=E25,G25,IF($AC$7=C26,I26,IF($AC$7=E26,G26,IF($AC$7=C27,I27,IF($AC$7=E27,G27,"")))))) ->  | AA25: =IF($AC$7=C25,K25,IF($AC$7=E25,M25,IF($AC$7=C26,K26,IF($AC$7=E26,M26,IF($AC$7=C27,K27,IF($AC$7=E27,M27,"")))))) ->  | AB25: =IF($AC$7=C25,M25,IF($AC$7=E25,K25,IF($AC$7=C26,M26,IF($AC$7=E26,K26,IF($AC$7=C27,M27,IF($AC$7=E27,K27,"")))))) ->  | AC25: =IF($AC$7=C25,G25+K25,IF($AC$7=E25,I25+M25,IF($AC$7=C26,G26+K26,IF($AC$7=E26,I26+M26,IF($AC$7=C27,G27+K27,IF($AC$7=E27,I27+M27,"")))))) ->  | AD25: =IF($AH$7=C25,G25,IF($AH$7=E25,I25,IF($AH$7=C26,G26,IF($AH$7=E26,I26,IF($AH$7=C27,G27,IF($AH$7=E27,I27,"")))))) ->  | AE25: =IF($AH$7=C25,I25,IF($AH$7=E25,G25,IF($AH$7=C26,I26,IF($AH$7=E26,G26,IF($AH$7=C27,I27,IF($AH$7=E27,G27,"")))))) ->  | AF25: =IF($AH$7=C25,K25,IF($AH$7=E25,M25,IF($AH$7=C26,K26,IF($AH$7=E26,M26,IF($AH$7=C27,K27,IF($AH$7=E27,M27,"")))))) ->  | AG25: =IF($AH$7=C25,M25,IF($AH$7=E25,K25,IF($AH$7=C26,M26,IF($AH$7=E26,K26,IF($AH$7=C27,M27,IF($AH$7=E27,K27,"")))))) ->  | AH25: =IF($AH$7=C25,G25+K25,IF($AH$7=E25,I25+M25,IF($AH$7=C26,G26+K26,IF($AH$7=E26,I26+M26,IF($AH$7=C27,G27+K27,IF($AH$7=E27,I27+M27,"")))))) ->  | AI25: =IF($AM$7=C25,G25,IF($AM$7=E25,I25,IF($AM$7=C26,G26,IF($AM$7=E26,I26,IF($AM$7=C27,G27,IF($AM$7=E27,I27,"")))))) ->  | AJ25: =IF($AM$7=C25,I25,IF($AM$7=E25,G25,IF($AM$7=C26,I26,IF($AM$7=E26,G26,IF($AM$7=C27,I27,IF($AM$7=E27,G27,"")))))) ->  | AK25: =IF($AM$7=C25,K25,IF($AM$7=E25,M25,IF($AM$7=C26,K26,IF($AM$7=E26,M26,IF($AM$7=C27,K27,IF($AM$7=E27,M27,"")))))) ->  | AL25: =IF($AM$7=C25,M25,IF($AM$7=E25,K25,IF($AM$7=C26,M26,IF($AM$7=E26,K26,IF($AM$7=C27,M27,IF($AM$7=E27,K27,"")))))) ->  | AM25: =IF($AM$7=C25,G25+K25,IF($AM$7=E25,I25+M25,IF($AM$7=C26,G26+K26,IF($AM$7=E26,I26+M26,IF($AM$7=C27,G27+K27,IF($AM$7=E27,I27+M27,"")))))) ->  | AN25: =IF($AR$7=C25,G25,IF($AR$7=E25,I25,IF($AR$7=C26,G26,IF($AR$7=E26,I26,IF($AR$7=C27,G27,IF($AR$7=E27,I27,"")))))) ->  | AO25: =IF($AR$7=C25,I25,IF($AR$7=E25,G25,IF($AR$7=C26,I26,IF($AR$7=E26,G26,IF($AR$7=C27,I27,IF($AR$7=E27,G27,"")))))) ->  | AP25: =IF($AR$7=C25,K25,IF($AR$7=E25,M25,IF($AR$7=C26,K26,IF($AR$7=E26,M26,IF($AR$7=C27,K27,IF($AR$7=E27,M27,"")))))) ->  | AQ25: =IF($AR$7=C25,M25,IF($AR$7=E25,K25,IF($AR$7=C26,M26,IF($AR$7=E26,K26,IF($AR$7=C27,M27,IF($AR$7=E27,K27,"")))))) ->  | AR25: =IF($AR$7=C25,G25+K25,IF($AR$7=E25,I25+M25,IF($AR$7=C26,G26+K26,IF($AR$7=E26,I26+M26,IF($AR$7=C27,G27+K27,IF($AR$7=E27,I27+M27,"")))))) -> 
C26: =IF('Einteilung-Termine'!C34="","",'Einteilung-Termine'!C34) ->  | D26: : | E26: =IF('Einteilung-Termine'!E34="","",'Einteilung-Termine'!E34) ->  | H26: : | L26: :
C27: =IF('Einteilung-Termine'!C35="","",'Einteilung-Termine'!C35) ->  | D27: : | E27: =IF('Einteilung-Termine'!E35="","",'Einteilung-Termine'!E35) ->  | H27: : | L27: :
B31: 4. Wettkampf
B32: Ausgetragen | G32: M.-Pkt. | K32: E.-Pkt.
C33: =IF('Einteilung-Termine'!C40="","",'Einteilung-Termine'!C40) ->  | D33: : | E33: =IF('Einteilung-Termine'!E40="","",'Einteilung-Termine'!E40) ->  | H33: : | I33: =IF(G33="","",IF(G33=2,0,IF(G33=1,1,IF(G33=0,2,"")))) ->  | L33: : | M33: =IF(K33="","",IF(K33=6,0,IF(K33=5,1,IF(K33=4,2,IF(K33=0,6,IF(K33=1,5,IF(K33=2,4,IF(K33=3,3,"")))))))) ->  | O33: =IF($S$7=C33,G33,IF($S$7=E33,I33,IF($S$7=C34,G34,IF($S$7=E34,I34,IF($S$7=C35,G35,IF($S$7=E35,I35,"")))))) ->  | P33: =IF($S$7=C33,I33,IF($S$7=E33,G33,IF($S$7=C34,I34,IF($S$7=E34,G34,IF($S$7=C35,I35,IF($S$7=E35,G35,"")))))) ->  | Q33: =IF($S$7=C33,K33,IF($S$7=E33,M33,IF($S$7=C34,K34,IF($S$7=E34,M34,IF($S$7=C35,K35,IF($S$7=E35,M35,"")))))) ->  | R33: =IF($S$7=C33,M33,IF($S$7=E33,K33,IF($S$7=C34,M34,IF($S$7=E34,K34,IF($S$7=C35,M35,IF($S$7=E35,K35,"")))))) ->  | S33: =IF($S$7=C33,G33+K33,IF($S$7=E33,I33+M33,IF($S$7=C34,G34+K34,IF($S$7=E34,I34+M34,IF($S$7=C35,G35+K35,IF($S$7=E35,I35+M35,"")))))) ->  | T33: =IF($X$7=C33,G33,IF($X$7=E33,I33,IF($X$7=C34,G34,IF($X$7=E34,I34,IF($X$7=C35,G35,IF($X$7=E35,I35,"")))))) ->  | U33: =IF($X$7=C33,I33,IF($X$7=E33,G33,IF($X$7=C34,I34,IF($X$7=E34,G34,IF($X$7=C35,I35,IF($X$7=E35,G35,"")))))) ->  | V33: =IF($X$7=C33,K33,IF($X$7=E33,M33,IF($X$7=C34,K34,IF($X$7=E34,M34,IF($X$7=C35,K35,IF($X$7=E35,M35,"")))))) ->  | W33: =IF($X$7=C33,M33,IF($X$7=E33,K33,IF($X$7=C34,M34,IF($X$7=E34,K34,IF($X$7=C35,M35,IF($X$7=E35,K35,"")))))) ->  | X33: =IF($X$7=C33,G33+K33,IF($X$7=E33,I33+M33,IF($X$7=C34,G34+K34,IF($X$7=E34,I34+M34,IF($X$7=C35,G35+K35,IF($X$7=E35,I35+M35,"")))))) ->  | Y33: =IF($AC$7=C33,G33,IF($AC$7=E33,I33,IF($AC$7=C34,G34,IF($AC$7=E34,I34,IF($AC$7=C35,G35,IF($AC$7=E35,I35,"")))))) ->  | Z33: =IF($AC$7=C33,I33,IF($AC$7=E33,G33,IF($AC$7=C34,I34,IF($AC$7=E34,G34,IF($AC$7=C35,I35,IF($AC$7=E35,G35,"")))))) ->  | AA33: =IF($AC$7=C33,K33,IF($AC$7=E33,M33,IF($AC$7=C34,K34,IF($AC$7=E34,M34,IF($AC$7=C35,K35,IF($AC$7=E35,M35,"")))))) ->  | AB33: =IF($AC$7=C33,M33,IF($AC$7=E33,K33,IF($AC$7=C34,M34,IF($AC$7=E34,K34,IF($AC$7=C35,M35,IF($AC$7=E35,K35,"")))))) ->  | AC33: =IF($AC$7=C33,G33+K33,IF($AC$7=E33,I33+M33,IF($AC$7=C34,G34+K34,IF($AC$7=E34,I34+M34,IF($AC$7=C35,G35+K35,IF($AC$7=E35,I35+M35,"")))))) ->  | AD33: =IF($AH$7=C33,G33,IF($AH$7=E33,I33,IF($AH$7=C34,G34,IF($AH$7=E34,I34,IF($AH$7=C35,G35,IF($AH$7=E35,I35,"")))))) ->  | AE33: =IF($AH$7=C33,I33,IF($AH$7=E33,G33,IF($AH$7=C34,I34,IF($AH$7=E34,G34,IF($AH$7=C35,I35,IF($AH$7=E35,G35,"")))))) ->  | AF33: =IF($AH$7=C33,K33,IF($AH$7=E33,M33,IF($AH$7=C34,K34,IF($AH$7=E34,M34,IF($AH$7=C35,K35,IF($AH$7=E35,M35,"")))))) ->  | AG33: =IF($AH$7=C33,M33,IF($AH$7=E33,K33,IF($AH$7=C34,M34,IF($AH$7=E34,K34,IF($AH$7=C35,M35,IF($AH$7=E35,K35,"")))))) ->  | AH33: =IF($AH$7=C33,G33+K33,IF($AH$7=E33,I33+M33,IF($AH$7=C34,G34+K34,IF($AH$7=E34,I34+M34,IF($AH$7=C35,G35+K35,IF($AH$7=E35,I35+M35,"")))))) ->  | AI33: =IF($AM$7=C33,G33,IF($AM$7=E33,I33,IF($AM$7=C34,G34,IF($AM$7=E34,I34,IF($AM$7=C35,G35,IF($AM$7=E35,I35,"")))))) ->  | AJ33: =IF($AM$7=C33,I33,IF($AM$7=E33,G33,IF($AM$7=C34,I34,IF($AM$7=E34,G34,IF($AM$7=C35,I35,IF($AM$7=E35,G35,"")))))) ->  | AK33: =IF($AM$7=C33,K33,IF($AM$7=E33,M33,IF($AM$7=C34,K34,IF($AM$7=E34,M34,IF($AM$7=C35,K35,IF($AM$7=E35,M35,"")))))) ->  | AL33: =IF($AM$7=C33,M33,IF($AM$7=E33,K33,IF($AM$7=C34,M34,IF($AM$7=E34,K34,IF($AM$7=C35,M35,IF($AM$7=E35,K35,"")))))) ->  | AM33: =IF($AM$7=C33,G33+K33,IF($AM$7=E33,I33+M33,IF($AM$7=C34,G34+K34,IF($AM$7=E34,I34+M34,IF($AM$7=C35,G35+K35,IF($AM$7=E35,I35+M35,"")))))) ->  | AN33: =IF($AR$7=C33,G33,IF($AR$7=E33,I33,IF($AR$7=C34,G34,IF($AR$7=E34,I34,IF($AR$7=C35,G35,IF($AR$7=E35,I35,"")))))) ->  | AO33: =IF($AR$7=C33,I33,IF($AR$7=E33,G33,IF($AR$7=C34,I34,IF($AR$7=E34,G34,IF($AR$7=C35,I35,IF($AR$7=E35,G35,"")))))) ->  | AP33: =IF($AR$7=C33,K33,IF($AR$7=E33,M33,IF($AR$7=C34,K34,IF($AR$7=E34,M34,IF($AR$7=C35,K35,IF($AR$7=E35,M35,"")))))) ->  | AQ33: =IF($AR$7=C33,M33,IF($AR$7=E33,K33,IF($AR$7=C34,M34,IF($AR$7=E34,K34,IF($AR$7=C35,M35,IF($AR$7=E35,K35,"")))))) ->  | AR33: =IF($AR$7=C33,G33+K33,IF($AR$7=E33,I33+M33,IF($AR$7=C34,G34+K34,IF($AR$7=E34,I34+M34,IF($AR$7=C35,G35+K35,IF($AR$7=E35,I35+M35,"")))))) -> 
C34: =IF('Einteilung-Termine'!C41="","",'Einteilung-Termine'!C41) ->  | D34: : | E34: =IF('Einteilung-Termine'!E41="","",'Einteilung-Termine'!E41) ->  | H34: : | L34: :
C35: =IF('Einteilung-Termine'!C42="","",'Einteilung-Termine'!C42) ->  | D35: : | E35: =IF('Einteilung-Termine'!E42="","",'Einteilung-Termine'!E42) ->  | H35: : | L35: :
B39: 5. Wettkampf
B40: Ausgetragen | G40: M.-Pkt. | K40: E.-Pkt.
C41: =IF('Einteilung-Termine'!C47="","",'Einteilung-Termine'!C47) ->  | D41: : | E41: =IF('Einteilung-Termine'!E47="","",'Einteilung-Termine'!E47) ->  | H41: : | I41: =IF(G41="","",IF(G41=2,0,IF(G41=1,1,IF(G41=0,2,"")))) ->  | L41: : | M41: =IF(K41="","",IF(K41=6,0,IF(K41=5,1,IF(K41=4,2,IF(K41=0,6,IF(K41=1,5,IF(K41=2,4,IF(K41=3,3,"")))))))) ->  | O41: =IF($S$7=C41,G41,IF($S$7=E41,I41,IF($S$7=C42,G42,IF($S$7=E42,I42,IF($S$7=E43,G43,IF($S$7=C43,I43,"")))))) ->  | P41: =IF($S$7=C41,I41,IF($S$7=E41,G41,IF($S$7=C42,I42,IF($S$7=E42,G42,IF($S$7=C43,I43,IF($S$7=E43,G43,"")))))) ->  | Q41: =IF($S$7=C41,K41,IF($S$7=E41,M41,IF($S$7=C42,K42,IF($S$7=E42,M42,IF($S$7=C43,K43,IF($S$7=E43,M43,"")))))) ->  | R41: =IF($S$7=C41,M41,IF($S$7=E41,K41,IF($S$7=C42,M42,IF($S$7=E42,K42,IF($S$7=C43,M43,IF($S$7=E43,K43,"")))))) ->  | S41: =IF($S$7=C41,G41+K41,IF($S$7=E41,I41+M41,IF($S$7=C42,G42+K42,IF($S$7=E42,I42+M42,IF($S$7=C43,G43+K43,IF($S$7=E43,I43+M43,"")))))) ->  | T41: =IF($X$7=C41,G41,IF($X$7=E41,I41,IF($X$7=C42,G42,IF($X$7=E42,I42,IF($X$7=C43,G43,IF($X$7=E43,I43,"")))))) ->  | U41: =IF($X$7=C41,I41,IF($X$7=E41,G41,IF($X$7=C42,I42,IF($X$7=E42,G42,IF($X$7=C43,I43,IF($X$7=E43,G43,"")))))) ->  | V41: =IF($X$7=C41,K41,IF($X$7=E41,M41,IF($X$7=C42,K42,IF($X$7=E42,M42,IF($X$7=C43,K43,IF($X$7=E43,M43,"")))))) ->  | W41: =IF($X$7=C41,M41,IF($X$7=E41,K41,IF($X$7=C42,M42,IF($X$7=E42,K42,IF($X$7=C43,M43,IF($X$7=E43,K43,"")))))) ->  | X41: =IF($X$7=C41,G41+K41,IF($X$7=E41,I41+M41,IF($X$7=C42,G42+K42,IF($X$7=E42,I42+M42,IF($X$7=C43,G43+K43,IF($X$7=E43,I43+M43,"")))))) ->  | Y41: =IF($AC$7=C41,G41,IF($AC$7=E41,I41,IF($AC$7=C42,G42,IF($AC$7=E42,I42,IF($AC$7=C43,G43,IF($AC$7=E43,I43,"")))))) ->  | Z41: =IF($AC$7=C41,I41,IF($AC$7=E41,G41,IF($AC$7=C42,I42,IF($AC$7=E42,G42,IF($AC$7=C43,I43,IF($AC$7=E43,G43,"")))))) ->  | AA41: =IF($AC$7=C41,K41,IF($AC$7=E41,M41,IF($AC$7=C42,K42,IF($AC$7=E42,M42,IF($AC$7=C43,K43,IF($AC$7=E43,M43,"")))))) ->  | AB41: =IF($AC$7=C41,M41,IF($AC$7=E41,K41,IF($AC$7=C42,M42,IF($AC$7=E42,K42,IF($AC$7=C43,M43,IF($AC$7=E43,K43,"")))))) ->  | AC41: =IF($AC$7=C41,G41+K41,IF($AC$7=E41,I41+M41,IF($AC$7=C42,G42+K42,IF($AC$7=E42,I42+M42,IF($AC$7=C43,G43+K43,IF($AC$7=E43,I43+M43,"")))))) ->  | AD41: =IF($AH$7=C41,G41,IF($AH$7=E41,I41,IF($AH$7=C42,G42,IF($AH$7=E42,I42,IF($AH$7=C43,G43,IF($AH$7=E43,I43,"")))))) ->  | AE41: =IF($AH$7=C41,I41,IF($AH$7=E41,G41,IF($AH$7=C42,I42,IF($AH$7=E42,G42,IF($AH$7=C43,I43,IF($AH$7=E43,G43,"")))))) ->  | AF41: =IF($AH$7=C41,K41,IF($AH$7=E41,M41,IF($AH$7=C42,K42,IF($AH$7=E42,M42,IF($AH$7=C43,K43,IF($AH$7=E43,M43,"")))))) ->  | AG41: =IF($AH$7=C41,M41,IF($AH$7=E41,K41,IF($AH$7=C42,M42,IF($AH$7=E42,K42,IF($AH$7=C43,M43,IF($AH$7=E43,K43,"")))))) ->  | AH41: =IF($AH$7=C41,G41+K41,IF($AH$7=E41,I41+M41,IF($AH$7=C42,G42+K42,IF($AH$7=E42,I42+M42,IF($AH$7=C43,G43+K43,IF($AH$7=E43,I43+M43,"")))))) ->  | AI41: =IF($AM$7=C41,G41,IF($AM$7=E41,I41,IF($AM$7=C42,G42,IF($AM$7=E42,I42,IF($AM$7=C43,G43,IF($AM$7=E43,I43,"")))))) ->  | AJ41: =IF($AM$7=C41,I41,IF($AM$7=E41,G41,IF($AM$7=C42,I42,IF($AM$7=E42,G42,IF($AM$7=C43,I43,IF($AM$7=E43,G43,"")))))) ->  | AK41: =IF($AM$7=C41,K41,IF($AM$7=E41,M41,IF($AM$7=C42,K42,IF($AM$7=E42,M42,IF($AM$7=C43,K43,IF($AM$7=E43,M43,"")))))) ->  | AL41: =IF($AM$7=C41,M41,IF($AM$7=E41,K41,IF($AM$7=C42,M42,IF($AM$7=E42,K42,IF($AM$7=C43,M43,IF($AM$7=E43,K43,"")))))) ->  | AM41: =IF($AM$7=C41,G41+K41,IF($AM$7=E41,I41+M41,IF($AM$7=C42,G42+K42,IF($AM$7=E42,I42+M42,IF($AM$7=C43,G43+K43,IF($AM$7=E43,I43+M43,"")))))) ->  | AN41: =IF($AR$7=C41,G41,IF($AR$7=E41,I41,IF($AR$7=C42,G42,IF($AR$7=E42,I42,IF($AR$7=C43,G43,IF($AR$7=E43,I43,"")))))) ->  | AO41: =IF($AR$7=C41,I41,IF($AR$7=E41,G41,IF($AR$7=C42,I42,IF($AR$7=E42,G42,IF($AR$7=C43,I43,IF($AR$7=E43,G43,"")))))) ->  | AP41: =IF($AR$7=C41,K41,IF($AR$7=E41,M41,IF($AR$7=C42,K42,IF($AR$7=E42,M42,IF($AR$7=C43,K43,IF($AR$7=E43,M43,"")))))) ->  | AQ41: =IF($AR$7=C41,M41,IF($AR$7=E41,K41,IF($AR$7=C42,M42,IF($AR$7=E42,K42,IF($AR$7=C43,M43,IF($AR$7=E43,K43,"")))))) ->  | AR41: =IF($AR$7=C41,G41+K41,IF($AR$7=E41,I41+M41,IF($AR$7=C42,G42+K42,IF($AR$7=E42,I42+M42,IF($AR$7=C43,G43+K43,IF($AR$7=E43,I43+M43,"")))))) -> 
C42: =IF('Einteilung-Termine'!C48="","",'Einteilung-Termine'!C48) ->  | D42: : | E42: =IF('Einteilung-Termine'!E48="","",'Einteilung-Termine'!E48) ->  | H42: : | L42: :
C43: =IF('Einteilung-Termine'!C49="","",'Einteilung-Termine'!C49) ->  | D43: : | E43: =IF('Einteilung-Termine'!E49="","",'Einteilung-Termine'!E49) ->  | H43: : | L43: :
S48: =SUM(O9:O46)*100+SUM(Q9:Q46)-SUM(P9:P46)*0.1-SUM(R9:R46)*0.01+0.001 -> 0.001 | X48: =SUM(T9:T46)*100+SUM(V9:V46)-SUM(U9:U46)*0.1-SUM(W9:W46)*0.01+0.002 -> 0.002 | AC48: =SUM(Y9:Y46)*100+SUM(AA9:AA46)-SUM(Z9:Z46)*0.1-SUM(AB9:AB46)*0.01+0.003 -> 0.003 | AH48: =SUM(AD9:AD46)*100+SUM(AF9:AF46)-SUM(AE9:AE46)*0.1-SUM(AG9:AG46)*0.01+0.004 -> 0.004 | AM48: =SUM(AI9:AI46)*100+SUM(AK9:AK46)-SUM(AJ9:AJ46)*0.1-SUM(AL9:AL46)*0.01+0.005 -> 0.005 | AR48: =SUM(AN9:AN46)*100+SUM(AP9:AP46)-SUM(AO9:AO46)*0.1-SUM(AQ9:AQ46)*0.01+0.006 -> 0.006
B49: Tabelle | O49: =SUM(O9:O46) -> 0 | P49: =SUM(P9:P46) -> 0 | Q49: =SUM(Q9:Q46) -> 0 | R49: =SUM(R9:R46) -> 0 | S49: =RANK(S48,$S$48:$BA$48) -> 6 | T49: =SUM(T9:T46) -> 0 | U49: =SUM(U9:U46) -> 0 | V49: =SUM(V9:V46) -> 0 | W49: =SUM(W9:W46) -> 0 | X49: =RANK(X48,$S$48:$BA$48) -> 5 | Y49: =SUM(Y9:Y46) -> 0 | Z49: =SUM(Z9:Z46) -> 0 | AA49: =SUM(AA9:AA46) -> 0 | AB49: =SUM(AB9:AB46) -> 0 | AC49: =RANK(AC48,$S$48:$BA$48) -> 4 | AD49: =SUM(AD9:AD46) -> 0 | AE49: =SUM(AE9:AE46) -> 0 | AF49: =SUM(AF9:AF46) -> 0 | AG49: =SUM(AG9:AG46) -> 0 | AH49: =RANK(AH48,$S$48:$BA$48) -> 3 | AI49: =SUM(AI9:AI46) -> 0 | AJ49: =SUM(AJ9:AJ46) -> 0 | AK49: =SUM(AK9:AK46) -> 0 | AL49: =SUM(AL9:AL46) -> 0 | AM49: =RANK(AM48,$S$48:$BA$48) -> 2 | AN49: =SUM(AN9:AN46) -> 0 | AO49: =SUM(AO9:AO46) -> 0 | AP49: =SUM(AP9:AP46) -> 0 | AQ49: =SUM(AQ9:AQ46) -> 0 | AR49: =RANK(AR48,$S$48:$BA$48) -> 1
B50: Platz | C50: Verein | G50: M.-Pkt. | K50: E.-Pkt.
B51: 1 | C51: =IF('Einteilung-Termine'!C8="","",IF(B51=$S$49,$S$7,IF(B51=$X$49,$X$7,IF(B51=$AC$49,$AC$7,IF(B51=$AH$49,$AH$7,IF(B51=$AM$49,$AM$7,IF(B51=$AR$49,$AR$7,IF(B51=$AV$49,$AV$7,IF(B51=$BA$49,$BA$7))))))))) ->  | F51: =IF(C51=$S$7,$S$31,IF(C51=$X$7,$X$31,IF(C51=$AC$7,$AC$31,IF(C51=$AH$7,$AH$31,IF(C51=$AM$7,$AM$31,""))))) ->  | G51: =IF(C51="","",IF(C51=$S$7,$O$49,IF(C51=$X$7,$T$49,IF(C51=$AC$7,$Y$49,IF(C51=$AH$7,$AD$49,IF(C51=$AM$7,$AI$49,IF(C51=$AR$7,$AN$49,IF(C51=$AV$7,#REF!,IF(C51=$BA$7,$AW$49))))))))) ->  | H51: : | I51: =IF(G51="","",IF(C51=$S$7,$P$49,IF(C51=$X$7,$U$49,IF(C51=$AC$7,$Z$49,IF(C51=$AH$7,$AE$49,IF(C51=$AM$7,$AJ$49,IF(C51=$AR$7,$AO$49,IF(C51=$AV$7,$AS$49,IF(C51=$BA$7,$AX$49))))))))) ->  | K51: =IF(C51="","",IF(C51=$S$7,$Q$49,IF(C51=$X$7,$V$49,IF(C51=$AC$7,$AA$49,IF(C51=$AH$7,$AF$49,IF(C51=$AM$7,$AK$49,IF(C51=$AR$7,$AP$49,IF(C51=$AV$7,$AT$49,IF(C51=$BA$7,$AY$49))))))))) ->  | L51: : | M51: =IF(K51="","",IF(C51=$S$7,$R$49,IF(C51=$X$7,$W$49,IF(C51=$AC$7,$AB$49,IF(C51=$AH$7,$AG$49,IF(C51=$AM$7,$AL$49,IF(C51=$AR$7,$AQ$49,IF(C51=$AV$7,$AU$49,IF(C51=$BA$7,$AZ$49))))))))) -> 
B52: 2 | C52: =IF('Einteilung-Termine'!C9="","",IF(C51="","",IF(B52=$S$49,$S$7,IF(B52=$X$49,$X$7,IF(B52=$AC$49,$AC$7,IF(B52=$AH$49,$AH$7,IF(B52=$AM$49,$AM$7,IF(B52=$AR$49,$AR$7,IF(B52=$AV$49,$AV$7,IF(B52=$BA$49,$BA$7)))))))))) ->  | F52: =IF(C52=$S$7,$S$31,IF(C52=$X$7,$X$31,IF(C52=$AC$7,$AC$31,IF(C52=$AH$7,$AH$31,IF(C52=$AM$7,$AM$31,""))))) ->  | G52: =IF(C52="","",IF(C52=$S$7,$O$49,IF(C52=$X$7,$T$49,IF(C52=$AC$7,$Y$49,IF(C52=$AH$7,$AD$49,IF(C52=$AM$7,$AI$49,IF(C52=$AR$7,$AN$49,IF(C52=$AV$7,#REF!,IF(C52=$BA$7,$AW$49))))))))) ->  | H52: : | L52: :
B53: 3 | C53: =IF('Einteilung-Termine'!C10="","",IF(C51="","",IF(B53=$S$49,$S$7,IF(B53=$X$49,$X$7,IF(B53=$AC$49,$AC$7,IF(B53=$AH$49,$AH$7,IF(B53=$AM$49,$AM$7,IF(B53=$AR$49,$AR$7,IF(B53=$AV$49,$AV$7,IF(B53=$BA$49,$BA$7)))))))))) ->  | G53: =IF(C53="","",IF(C53=$S$7,$O$49,IF(C53=$X$7,$T$49,IF(C53=$AC$7,$Y$49,IF(C53=$AH$7,$AD$49,IF(C53=$AM$7,$AI$49,IF(C53=$AR$7,$AN$49,IF(C53=$AV$7,#REF!,IF(C53=$BA$7,$AW$49))))))))) ->  | H53: : | L53: :
B54: 4 | C54: =IF('Einteilung-Termine'!C11="","",IF(C51="","",IF(B54=$S$49,$S$7,IF(B54=$X$49,$X$7,IF(B54=$AC$49,$AC$7,IF(B54=$AH$49,$AH$7,IF(B54=$AM$49,$AM$7,IF(B54=$AR$49,$AR$7,IF(B54=$AV$49,$AV$7,IF(B54=$BA$49,$BA$7)))))))))) ->  | G54: =IF(C54="","",IF(C54=$S$7,$O$49,IF(C54=$X$7,$T$49,IF(C54=$AC$7,$Y$49,IF(C54=$AH$7,$AD$49,IF(C54=$AM$7,$AI$49,IF(C54=$AR$7,$AN$49,IF(C54=$AV$7,#REF!,IF(C54=$BA$7,$AW$49))))))))) ->  | H54: : | L54: :
B55: 5 | C55: =IF('Einteilung-Termine'!C12="","",IF(C51="","",IF(B55=$S$49,$S$7,IF(B55=$X$49,$X$7,IF(B55=$AC$49,$AC$7,IF(B55=$AH$49,$AH$7,IF(B55=$AM$49,$AM$7,IF(B55=$AR$49,$AR$7,IF(B55=$AV$49,$AV$7,IF(B55=$BA$49,$BA$7)))))))))) ->  | G55: =IF(C55="","",IF(C55=$S$7,$O$49,IF(C55=$X$7,$T$49,IF(C55=$AC$7,$Y$49,IF(C55=$AH$7,$AD$49,IF(C55=$AM$7,$AI$49,IF(C55=$AR$7,$AN$49,IF(C55=$AV$7,#REF!,IF(C55=$BA$7,$AW$49))))))))) ->  | H55: : | L55: :
B56: 6 | C56: =IF('Einteilung-Termine'!C13="","",IF(C51="","",IF(B56=$S$49,$S$7,IF(B56=$X$49,$X$7,IF(B56=$AC$49,$AC$7,IF(B56=$AH$49,$AH$7,IF(B56=$AM$49,$AM$7,IF(B56=$AR$49,$AR$7,IF(B56=$AV$49,$AV$7,IF(B56=$BA$49,$BA$7)))))))))) ->  | G56: =IF(C56="","",IF(C56=$S$7,$O$49,IF(C56=$X$7,$T$49,IF(C56=$AC$7,$Y$49,IF(C56=$AH$7,$AD$49,IF(C56=$AM$7,$AI$49,IF(C56=$AR$7,$AN$49,IF(C56=$AV$7,#REF!,IF(C56=$BA$7,$AW$49))))))))) ->  | H56: : | L56: :

Sheet Wertung-Einzel
A1: ='Einteilung-Termine'!A1:C1 -> 0
B2: Ergebnis: | C2: Einzel
B3: Veranstalter: | C3: =IF('Einteilung-Termine'!E2="","",'Einteilung-Termine'!E2) ->  | J3: =TODAY() -> 2025-02-21
B4: Disziplin : | C4: =IF('Einteilung-Termine'!E3="","",'Einteilung-Termine'!E3) -> 
J5: =IF('Einteilung-Termine'!E15="","",'Einteilung-Termine'!E15) -> © Bechtel V6.0 | L5: =IF('Einteilung-Termine'!L4="","",'Einteilung-Termine'!L4) ->  | M5: =IF('Einteilung-Termine'!M4="","",'Einteilung-Termine'!M4) -> 
E7: Rangliste (RL) wird nach dem Schnitt der 4 besten Wettkämpfe sortiert
A8: RL | B8: Name | C8: Verein | D8: S/E | E8: 1W | F8: 2W | G8: 3W | H8: 4W | I8: 5W | J8: Ges.-R. | K8: Ges.- Ø | L8: WK | M8: Ø 4WK
A9: 1 | B9: Marina Lose | C9: SSV Dreis | D9: S | E9: 399 | F9: 400 | G9: 398 | H9: 399 | I9: 387 | J9: =IF(SUM(E9:I9)>0,SUM(E9:I9),"") -> 1983 | K9: =IF(J9="","",AVERAGE(E9:I9)) -> 396.6 | L9: =IF(J9="","",COUNT(E9:I9)-COUNTIF(E9:I9,"0")) -> 5 | M9: =IF(L9<4,0,IF(ISERROR(AVERAGE(LARGE(E9:I9,{1,2,3,4}))),"",AVERAGE(LARGE(E9:I9,{1,2,3,4})))) -> 399
A10: =IF(L10="","",IF(L10<4,"",IF(ROUND(M10,5)=ROUND(M9,5),"",ROW()-8))) -> 2 | B10: Klaus Grau | C10: BSV Osann-Monzel | D10: S | E10: 392 | G10: 393 | H10: 394 | I10: 398 | J10: =IF(SUM(E10:I10)>0,SUM(E10:I10),"") -> 1577 | K10: =IF(J10="","",AVERAGE(E10:I10)) -> 394.25 | L10: =IF(J10="","",COUNT(E10:I10)-COUNTIF(E10:I10,"0")) -> 4 | M10: =IF(L10<4,0,IF(ISERROR(AVERAGE(LARGE(E10:I10,{1,2,3,4}))),"",AVERAGE(LARGE(E10:I10,{1,2,3,4})))) -> 394.25
A11: =IF(L11="","",IF(L11<4,"",IF(ROUND(M11,5)=ROUND(M10,5),"",ROW()-8))) -> 3 | B11: Ulrike Lose | C11: St.Seb.Schbr. Brauneberg | D11: S | E11: 390 | F11: 391 | G11: 392 | H11: 398 | I11: 395 | J11: =IF(SUM(E11:I11)>0,SUM(E11:I11),"") -> 1966 | K11: =IF(J11="","",AVERAGE(E11:I11)) -> 393.2 | L11: =IF(J11="","",COUNT(E11:I11)-COUNTIF(E11:I11,"0")) -> 5 | M11: =IF(L11<4,0,IF(ISERROR(AVERAGE(LARGE(E11:I11,{1,2,3,4}))),"",AVERAGE(LARGE(E11:I11,{1,2,3,4})))) -> 394
A12: 4 | B12: Uli Grün | C12: SVM Zeltingen | D12: S | E12: 389 | F12: 390 | H12: 395 | I12: 399 | J12: =IF(SUM(E12:I12)>0,SUM(E12:I12),"") -> 1573 | K12: =IF(J12="","",AVERAGE(E12:I12)) -> 393.25 | L12: =IF(J12="","",COUNT(E12:I12)-COUNTIF(E12:I12,"0")) -> 4 | M12: =IF(L12<4,0,IF(ISERROR(AVERAGE(LARGE(E12:I12,{1,2,3,4}))),"",AVERAGE(LARGE(E12:I12,{1,2,3,4})))) -> 393.25
A13: 5 | B13: Ernst Küfer | C13: SVM Zeltingen | D13: S | E13: 391 | F13: 394 | G13: 389 | H13: 393 | I13: 394 | J13: =IF(SUM(E13:I13)>0,SUM(E13:I13),"") -> 1961 | K13: =IF(J13="","",AVERAGE(E13:I13)) -> 392.2 | L13: =IF(J13="","",COUNT(E13:I13)-COUNTIF(E13:I13,"0")) -> 5 | M13: =IF(L13<4,0,IF(ISERROR(AVERAGE(LARGE(E13:I13,{1,2,3,4}))),"",AVERAGE(LARGE(E13:I13,{1,2,3,4})))) -> 393
A14: 6 | B14: Horst Schall | C14: SCC Hub. Haag | D14: S | E14: 392 | F14: 394 | G14: 389 | H14: 392 | I14: 393 | J14: =IF(SUM(E14:I14)>0,SUM(E14:I14),"") -> 1960 | K14: =IF(J14="","",AVERAGE(E14:I14)) -> 392 | L14: =IF(J14="","",COUNT(E14:I14)-COUNTIF(E14:I14,"0")) -> 5 | M14: =IF(L14<4,0,IF(ISERROR(AVERAGE(LARGE(E14:I14,{1,2,3,4}))),"",AVERAGE(LARGE(E14:I14,{1,2,3,4})))) -> 392.75
A15: 7 | B15: Werner Müller | C15: SCC Hub. Haag | D15: S | E15: 377 | F15: 395 | G15: 389 | H15: 393 | I15: 390 | J15: =IF(SUM(E15:I15)>0,SUM(E15:I15),"") -> 1944 | K15: =IF(J15="","",AVERAGE(E15:I15)) -> 388.8 | L15: =IF(J15="","",COUNT(E15:I15)-COUNTIF(E15:I15,"0")) -> 5 | M15: =IF(L15<4,0,IF(ISERROR(AVERAGE(LARGE(E15:I15,{1,2,3,4}))),"",AVERAGE(LARGE(E15:I15,{1,2,3,4})))) -> 391.75
A16: 8 | B16: Manfred Maler | C16: SCC Hub. Haag | D16: S | E16: 393 | F16: 390 | G16: 377 | H16: 389 | I16: 388 | J16: =IF(SUM(E16:I16)>0,SUM(E16:I16),"") -> 1937 | K16: =IF(J16="","",AVERAGE(E16:I16)) -> 387.4 | L16: =IF(J16="","",COUNT(E16:I16)-COUNTIF(E16:I16,"0")) -> 5 | M16: =IF(L16<4,0,IF(ISERROR(AVERAGE(LARGE(E16:I16,{1,2,3,4}))),"",AVERAGE(LARGE(E16:I16,{1,2,3,4})))) -> 390
A17: 9 | B17: Kathrin Feste | C17: BSV Osann-Monzel | D17: S | E17: 380 | F17: 389 | G17: 388 | H17: 390 | I17: 392 | J17: =IF(SUM(E17:I17)>0,SUM(E17:I17),"") -> 1939 | K17: =IF(J17="","",AVERAGE(E17:I17)) -> 387.8 | L17: =IF(J17="","",COUNT(E17:I17)-COUNTIF(E17:I17,"0")) -> 5 | M17: =IF(L17<4,0,IF(ISERROR(AVERAGE(LARGE(E17:I17,{1,2,3,4}))),"",AVERAGE(LARGE(E17:I17,{1,2,3,4})))) -> 389.75
A18: 10 | B18: Arno Groß | C18: SCC Hub. Haag | D18: S | E18: 388 | F18: 388 | G18: 388 | H18: 388 | I18: 390 | J18: =IF(SUM(E18:I18)>0,SUM(E18:I18),"") -> 1942 | K18: =IF(J18="","",AVERAGE(E18:I18)) -> 388.4 | L18: =IF(J18="","",COUNT(E18:I18)-COUNTIF(E18:I18,"0")) -> 5 | M18: =IF(L18<4,0,IF(ISERROR(AVERAGE(LARGE(E18:I18,{1,2,3,4}))),"",AVERAGE(LARGE(E18:I18,{1,2,3,4})))) -> 388.5
A19: 11 | B19: Otto Richter | C19: SCC Hub. Haag | D19: S | E19: 393 | F19: 389 | G19: 369 | H19: 387 | I19: 383 | J19: =IF(SUM(E19:I19)>0,SUM(E19:I19),"") -> 1921 | K19: =IF(J19="","",AVERAGE(E19:I19)) -> 384.2 | L19: =IF(J19="","",COUNT(E19:I19)-COUNTIF(E19:I19,"0")) -> 5 | M19: =IF(L19<4,0,IF(ISERROR(AVERAGE(LARGE(E19:I19,{1,2,3,4}))),"",AVERAGE(LARGE(E19:I19,{1,2,3,4})))) -> 388
A20: 12 | B20: Achim Klein | C20: SVM Zeltingen | D20: S | E20: 369 | F20: 399 | G20: 374 | H20: 389 | I20: 388 | J20: =IF(SUM(E20:I20)>0,SUM(E20:I20),"") -> 1919 | K20: =IF(J20="","",AVERAGE(E20:I20)) -> 383.8 | L20: =IF(J20="","",COUNT(E20:I20)-COUNTIF(E20:I20,"0")) -> 5 | M20: =IF(L20<4,0,IF(ISERROR(AVERAGE(LARGE(E20:I20,{1,2,3,4}))),"",AVERAGE(LARGE(E20:I20,{1,2,3,4})))) -> 387.5
A21: 13 | B21: Gina Blau | C21: BSV Osann-Monzel | D21: S | E21: 377 | F21: 356 | G21: 393 | H21: 388 | I21: 388 | J21: =IF(SUM(E21:I21)>0,SUM(E21:I21),"") -> 1902 | K21: =IF(J21="","",AVERAGE(E21:I21)) -> 380.4 | L21: =IF(J21="","",COUNT(E21:I21)-COUNTIF(E21:I21,"0")) -> 5 | M21: =IF(L21<4,0,IF(ISERROR(AVERAGE(LARGE(E21:I21,{1,2,3,4}))),"",AVERAGE(LARGE(E21:I21,{1,2,3,4})))) -> 386.5
A22: 14 | B22: Ernst Schwarz | C22: BSV Osann-Monzel | D22: S | E22: 389 | F22: 377 | G22: 399 | H22: 374 | I22: 379 | J22: =IF(SUM(E22:I22)>0,SUM(E22:I22),"") -> 1918 | K22: =IF(J22="","",AVERAGE(E22:I22)) -> 383.6 | L22: =IF(J22="","",COUNT(E22:I22)-COUNTIF(E22:I22,"0")) -> 5 | M22: =IF(L22<4,0,IF(ISERROR(AVERAGE(LARGE(E22:I22,{1,2,3,4}))),"",AVERAGE(LARGE(E22:I22,{1,2,3,4})))) -> 386
A23: 15 | B23: Georg Schreiber | C23: SVM Zeltingen | D23: S | E23: 389 | F23: 388 | G23: 387 | H23: 370 | I23: 378 | J23: =IF(SUM(E23:I23)>0,SUM(E23:I23),"") -> 1912 | K23: =IF(J23="","",AVERAGE(E23:I23)) -> 382.4 | L23: =IF(J23="","",COUNT(E23:I23)-COUNTIF(E23:I23,"0")) -> 5 | M23: =IF(L23<4,0,IF(ISERROR(AVERAGE(LARGE(E23:I23,{1,2,3,4}))),"",AVERAGE(LARGE(E23:I23,{1,2,3,4})))) -> 385.5
B24: Paul Grob | C24: St.Seb.Schbr. Brauneberg | D24: S | E24: 377 | F24: 377 | G24: 399 | H24: 389 | I24: 374 | J24: =IF(SUM(E24:I24)>0,SUM(E24:I24),"") -> 1916 | K24: =IF(J24="","",AVERAGE(E24:I24)) -> 383.2 | L24: =IF(J24="","",COUNT(E24:I24)-COUNTIF(E24:I24,"0")) -> 5 | M24: =IF(L24<4,0,IF(ISERROR(AVERAGE(LARGE(E24:I24,{1,2,3,4}))),"",AVERAGE(LARGE(E24:I24,{1,2,3,4})))) -> 385.5
A25: 17 | B25: Elke Schreiner | C25: SG Wittlich | D25: S | E25: 376 | F25: 387 | G25: 366 | H25: 388 | I25: 390 | J25: =IF(SUM(E25:I25)>0,SUM(E25:I25),"") -> 1907 | K25: =IF(J25="","",AVERAGE(E25:I25)) -> 381.4 | L25: =IF(J25="","",COUNT(E25:I25)-COUNTIF(E25:I25,"0")) -> 5 | M25: =IF(L25<4,0,IF(ISERROR(AVERAGE(LARGE(E25:I25,{1,2,3,4}))),"",AVERAGE(LARGE(E25:I25,{1,2,3,4})))) -> 385.25
A26: 18 | B26: Kalle Fritzen | C26: SG Wittlich | D26: S | E26: 377 | F26: 388 | G26: 369 | H26: 390 | I26: 385 | J26: =IF(SUM(E26:I26)>0,SUM(E26:I26),"") -> 1909 | K26: =IF(J26="","",AVERAGE(E26:I26)) -> 381.8 | L26: =IF(J26="","",COUNT(E26:I26)-COUNTIF(E26:I26,"0")) -> 5 | M26: =IF(L26<4,0,IF(ISERROR(AVERAGE(LARGE(E26:I26,{1,2,3,4}))),"",AVERAGE(LARGE(E26:I26,{1,2,3,4})))) -> 385
A27: 19 | B27: Anna Jung | C27: St.Seb.Schbr. Brauneberg | D27: S | E27: 393 | F27: 389 | G27: 377 | H27: 377 | I27: 377 | J27: =IF(SUM(E27:I27)>0,SUM(E27:I27),"") -> 1913 | K27: =IF(J27="","",AVERAGE(E27:I27)) -> 382.6 | L27: =IF(J27="","",COUNT(E27:I27)-COUNTIF(E27:I27,"0")) -> 5 | M27: =IF(L27<4,0,IF(ISERROR(AVERAGE(LARGE(E27:I27,{1,2,3,4}))),"",AVERAGE(LARGE(E27:I27,{1,2,3,4})))) -> 384
A28: 20 | B28: Manfred Maurer | C28: SG Wittlich | D28: S | E28: 366 | F28: 387 | G28: 356 | H28: 391 | I28: 389 | J28: =IF(SUM(E28:I28)>0,SUM(E28:I28),"") -> 1889 | K28: =IF(J28="","",AVERAGE(E28:I28)) -> 377.8 | L28: =IF(J28="","",COUNT(E28:I28)-COUNTIF(E28:I28,"0")) -> 5 | M28: =IF(L28<4,0,IF(ISERROR(AVERAGE(LARGE(E28:I28,{1,2,3,4}))),"",AVERAGE(LARGE(E28:I28,{1,2,3,4})))) -> 383.25
A29: 21 | B29: Elfriede Riss | C29: St.Seb.Schbr. Brauneberg | D29: S | E29: 393 | F29: 377 | G29: 376 | H29: 383 | I29: 376 | J29: =IF(SUM(E29:I29)>0,SUM(E29:I29),"") -> 1905 | K29: =IF(J29="","",AVERAGE(E29:I29)) -> 381 | L29: =IF(J29="","",COUNT(E29:I29)-COUNTIF(E29:I29,"0")) -> 5 | M29: =IF(L29<4,0,IF(ISERROR(AVERAGE(LARGE(E29:I29,{1,2,3,4}))),"",AVERAGE(LARGE(E29:I29,{1,2,3,4})))) -> 382.25
A30: 22 | B30: Markus Glaser | C30: SVM Zeltingen | D30: S | E30: 367 | F30: 378 | G30: 369 | H30: 390 | I30: 390 | J30: =IF(SUM(E30:I30)>0,SUM(E30:I30),"") -> 1894 | K30: =IF(J30="","",AVERAGE(E30:I30)) -> 378.8 | L30: =IF(J30="","",COUNT(E30:I30)-COUNTIF(E30:I30,"0")) -> 5 | M30: =IF(L30<4,0,IF(ISERROR(AVERAGE(LARGE(E30:I30,{1,2,3,4}))),"",AVERAGE(LARGE(E30:I30,{1,2,3,4})))) -> 381.75
A31: 23 | B31: Rudi Winzer | C31: SG Wittlich | D31: S | E31: 378 | F31: 367 | G31: 384 | H31: 377 | I31: 379 | J31: =IF(SUM(E31:I31)>0,SUM(E31:I31),"") -> 1885 | K31: =IF(J31="","",AVERAGE(E31:I31)) -> 377 | L31: =IF(J31="","",COUNT(E31:I31)-COUNTIF(E31:I31,"0")) -> 5 | M31: =IF(L31<4,0,IF(ISERROR(AVERAGE(LARGE(E31:I31,{1,2,3,4}))),"",AVERAGE(LARGE(E31:I31,{1,2,3,4})))) -> 379.5
A32: 24 | B32: Alois Hupe | C32: SSV Dreis | D32: S | E32: 376 | F32: 367 | G32: 349 | H32: 378 | I32: 379 | J32: =IF(SUM(E32:I32)>0,SUM(E32:I32),"") -> 1849 | K32: =IF(J32="","",AVERAGE(E32:I32)) -> 369.8 | L32: =IF(J32="","",COUNT(E32:I32)-COUNTIF(E32:I32,"0")) -> 5 | M32: =IF(L32<4,0,IF(ISERROR(AVERAGE(LARGE(E32:I32,{1,2,3,4}))),"",AVERAGE(LARGE(E32:I32,{1,2,3,4})))) -> 375
A33: 25 | B33: Hans Schelle | C33: SSV Dreis | D33: S | E33: 345 | F33: 367 | G33: 376 | H33: 340 | I33: 377 | J33: =IF(SUM(E33:I33)>0,SUM(E33:I33),"") -> 1805 | K33: =IF(J33="","",AVERAGE(E33:I33)) -> 361 | L33: =IF(J33="","",COUNT(E33:I33)-COUNTIF(E33:I33,"0")) -> 5 | M33: =IF(L33<4,0,IF(ISERROR(AVERAGE(LARGE(E33:I33,{1,2,3,4}))),"",AVERAGE(LARGE(E33:I33,{1,2,3,4})))) -> 366.25
A34: 26 | B34: Kurt Klingel | C34: SSV Dreis | D34: S | E34: 356 | F34: 358 | G34: 359 | H34: 367 | I34: 378 | J34: =IF(SUM(E34:I34)>0,SUM(E34:I34),"") -> 1818 | K34: =IF(J34="","",AVERAGE(E34:I34)) -> 363.6 | L34: =IF(J34="","",COUNT(E34:I34)-COUNTIF(E34:I34,"0")) -> 5 | M34: =IF(L34<4,0,IF(ISERROR(AVERAGE(LARGE(E34:I34,{1,2,3,4}))),"",AVERAGE(LARGE(E34:I34,{1,2,3,4})))) -> 365.5
A35: 27 | B35: Fred Glocke | C35: SSV Dreis | D35: S | E35: 380 | F35: 350 | G35: 349 | H35: 368 | I35: 356 | J35: =IF(SUM(E35:I35)>0,SUM(E35:I35),"") -> 1803 | K35: =IF(J35="","",AVERAGE(E35:I35)) -> 360.6 | L35: =IF(J35="","",COUNT(E35:I35)-COUNTIF(E35:I35,"0")) -> 5 | M35: =IF(L35<4,0,IF(ISERROR(AVERAGE(LARGE(E35:I35,{1,2,3,4}))),"",AVERAGE(LARGE(E35:I35,{1,2,3,4})))) -> 363.5
B36: Oswald Glatt | C36: St.Seb.Schbr. Brauneberg | D36: S | E36: 393 | F36: 389 | H36: 379 | J36: =IF(SUM(E36:I36)>0,SUM(E36:I36),"") -> 1161 | K36: =IF(J36="","",AVERAGE(E36:I36)) -> 387 | L36: =IF(J36="","",COUNT(E36:I36)-COUNTIF(E36:I36,"0")) -> 3 | M36: =IF(L36<4,0,IF(ISERROR(AVERAGE(LARGE(E36:I36,{1,2,3,4}))),"",AVERAGE(LARGE(E36:I36,{1,2,3,4})))) -> 0
B37: Heike Braun | C37: BSV Osann-Monzel | D37: S | E37: 386 | G37: 388 | J37: =IF(SUM(E37:I37)>0,SUM(E37:I37),"") -> 774 | K37: =IF(J37="","",AVERAGE(E37:I37)) -> 387 | L37: =IF(J37="","",COUNT(E37:I37)-COUNTIF(E37:I37,"0")) -> 2 | M37: =IF(L37<4,0,IF(ISERROR(AVERAGE(LARGE(E37:I37,{1,2,3,4}))),"",AVERAGE(LARGE(E37:I37,{1,2,3,4})))) -> 0
B38: Fritz Bauer | C38: SG Wittlich | D38: S | E38: 387 | J38: =IF(SUM(E38:I38)>0,SUM(E38:I38),"") -> 387 | K38: =IF(J38="","",AVERAGE(E38:I38)) -> 387 | L38: =IF(J38="","",COUNT(E38:I38)-COUNTIF(E38:I38,"0")) -> 1 | M38: =IF(L38<4,0,IF(ISERROR(AVERAGE(LARGE(E38:I38,{1,2,3,4}))),"",AVERAGE(LARGE(E38:I38,{1,2,3,4})))) -> 0
J39: =IF(SUM(E39:I39)>0,SUM(E39:I39),"") ->  | K39: =IF(J39="","",AVERAGE(E39:I39)) ->  | L39: =IF(J39="","",COUNT(E39:I39)-COUNTIF(E39:I39,"0")) ->  | M39: =IF(L39<4,0,IF(ISERROR(AVERAGE(LARGE(E39:I39,{1,2,3,4}))),"",AVERAGE(LARGE(E39:I39,{1,2,3,4})))) -> 
M40: =IF(L40<4,0,IF(ISERROR(AVERAGE(LARGE(E40:I40,{1,2,3,4}))),"",AVERAGE(LARGE(E40:I40,{1,2,3,4})))) -> 
M41: =IF(L41<4,0,IF(ISERROR(AVERAGE(LARGE(E41:I41,{1,2,3,4}))),"",AVERAGE(LARGE(E41:I41,{1,2,3,4})))) -> 
M42: =IF(L42<4,0,IF(ISERROR(AVERAGE(LARGE(E42:I42,{1,2,3,4}))),"",AVERAGE(LARGE(E42:I42,{1,2,3,4})))) -> 
M43: =IF(L43<4,0,IF(ISERROR(AVERAGE(LARGE(E43:I43,{1,2,3,4}))),"",AVERAGE(LARGE(E43:I43,{1,2,3,4})))) -> 
M44: =IF(L44<4,0,IF(ISERROR(AVERAGE(LARGE(E44:I44,{1,2,3,4}))),"",AVERAGE(LARGE(E44:I44,{1,2,3,4})))) -> 
M45: =IF(L45<4,0,IF(ISERROR(AVERAGE(LARGE(E45:I45,{1,2,3,4}))),"",AVERAGE(LARGE(E45:I45,{1,2,3,4})))) -> 
M46: =IF(L46<4,0,IF(ISERROR(AVERAGE(LARGE(E46:I46,{1,2,3,4}))),"",AVERAGE(LARGE(E46:I46,{1,2,3,4})))) -> 
M47: =IF(L47<4,0,IF(ISERROR(AVERAGE(LARGE(E47:I47,{1,2,3,4}))),"",AVERAGE(LARGE(E47:I47,{1,2,3,4})))) -> 
M48: =IF(L48<4,0,IF(ISERROR(AVERAGE(LARGE(E48:I48,{1,2,3,4}))),"",AVERAGE(LARGE(E48:I48,{1,2,3,4})))) -> 
M49: =IF(L49<4,0,IF(ISERROR(AVERAGE(LARGE(E49:I49,{1,2,3,4}))),"",AVERAGE(LARGE(E49:I49,{1,2,3,4})))) -> 
M50: =IF(L50<4,0,IF(ISERROR(AVERAGE(LARGE(E50:I50,{1,2,3,4}))),"",AVERAGE(LARGE(E50:I50,{1,2,3,4})))) -> 

Sheet Grafik (hidden)
